Department Of Health,Entity,Date of Payment,Expense Type,Expense Area,Supplier ,Amount,Month
Department Of Health,United Lincolnshire Hospitals NHS Trust,2018-06-28,PHARMACY PILGRIM,DIAGNOSTICS,AAH HOSPITAL SERVICE,"48,593.78",Jun-18
Department Of Health,United Lincolnshire Hospitals NHS Trust,2018-06-28,PHARMACY PILGRIM,DIAGNOSTICS,AAH HOSPITAL SERVICE,"47,340.00",Jun-18
Department Of Health,United Lincolnshire Hospitals NHS Trust,2018-06-28,WATER AND SEWERAGE,SITE ESTATES & FACIL BOSTON,ANGLIAN WATER BUSINESS NATIONAL LTD,"25,720.60",Jun-18
Department Of Health,United Lincolnshire Hospitals NHS Trust,2018-06-28,WATER AND SEWERAGE,SITE ESTATES & FACIL LINCOLN,ANGLIAN WATER BUSINESS NATIONAL LTD,"26,294.69",Jun-18
Department Of Health,United Lincolnshire Hospitals NHS Trust,2018-06-21,HIRE OF CLINICAL EQUIPMENT,PATIENT SAFEY ,ARJO UK LIMITED,"121,184.04",Jun-18
Department Of Health,United Lincolnshire Hospitals NHS Trust,2018-06-21,PHARMACY PILGRIM,DIAGNOSTICS,BAYER PLC,"31,464.00",Jun-18
Department Of Health,United Lincolnshire Hospitals NHS Trust,2018-06-21,PHARMACY PILGRIM,DIAGNOSTICS,BAYER PLC,"31,464.00",Jun-18
Department Of Health,United Lincolnshire Hospitals NHS Trust,2018-06-21,EXTERNAL LAUNDRY CONTRACT,SITE ESTATES & FACIL LINCOLN,BERENDSEN UK LTD (SUNLIGHT),"45,935.59",Jun-18
Department Of Health,United Lincolnshire Hospitals NHS Trust,2018-06-21,EXTERNAL LAUNDRY CONTRACT,SITE ESTATES & FACIL LINCOLN,BERENDSEN UK LTD (SUNLIGHT),"45,341.27",Jun-18
Department Of Health,United Lincolnshire Hospitals NHS Trust,2018-06-14,SERVICES FROM NON-NHS BODIES,HEAD & NECK BOSTON,BMI HEALTHCARE LTD,176.54,Jun-18
Department Of Health,United Lincolnshire Hospitals NHS Trust,2018-06-14,SERVICES FROM NON-NHS BODIES,HEAD & NECK LINCOLN,BMI HEALTHCARE LTD,"27,494.58",Jun-18
Department Of Health,United Lincolnshire Hospitals NHS Trust,2018-06-05,RATES,SITE ESTATES & FACIL BOSTON,BOSTON BOROUGH COUNCIL - BUSINESS RATES,"828,240.00",Jun-18
Department Of Health,United Lincolnshire Hospitals NHS Trust,2018-06-07,WAN USAGE,IMT,BT GLOBAL SERVICES,"95,999.69",Jun-18
Department Of Health,United Lincolnshire Hospitals NHS Trust,2018-06-28,WAN USAGE,IMT,BT GLOBAL SERVICES,"115,199.63",Jun-18
Department Of Health,United Lincolnshire Hospitals NHS Trust,2018-06-28,SUBSCRIPTION  FEES,NURSING MANAGEMENT SUPPORT,CARE QUALITY COMMISSION,"306,674.00",Jun-18
Department Of Health,United Lincolnshire Hospitals NHS Trust,2018-06-05,RATES,SITE ESTATES & FACIL LINCOLN,CITY OF LINCOLN COUNCIL,"1,114,180.00",Jun-18
Department Of Health,United Lincolnshire Hospitals NHS Trust,2018-06-14,OTHER REGISTRARS,HEAD & NECK LINCOLN,DONCASTER AND BASSETLAW HOSP NHS TRUST,"25,781.96",Jun-18
Department Of Health,United Lincolnshire Hospitals NHS Trust,2018-06-18,ELECTRICITY,SITE ESTATES & FACIL BOSTON,EDF ENERGY 1 LIMITED,"63,657.01",Jun-18
Department Of Health,United Lincolnshire Hospitals NHS Trust,2018-06-18,ELECTRICITY,SITE ESTATES & FACIL GRANTHAM,EDF ENERGY 1 LIMITED,"39,446.93",Jun-18
Department Of Health,United Lincolnshire Hospitals NHS Trust,2018-06-18,ELECTRICITY,SITE ESTATES & FACIL LINCOLN,EDF ENERGY 1 LIMITED,"36,105.34",Jun-18
Department Of Health,United Lincolnshire Hospitals NHS Trust,2018-06-05,CHILDCARE VOUCHERS,PAN TRUST,FIDELITI LTD,"38,355.73",Jun-18
Department Of Health,United Lincolnshire Hospitals NHS Trust,2018-06-14,SW SUPPORT,CLINICAL SUPPORT MANAGEMENT,GE MEDICAL SYSTEMS LTD,"94,038.52",Jun-18
Department Of Health,United Lincolnshire Hospitals NHS Trust,2018-06-14,SW SUPPORT,CLINICAL SUPPORT MANAGEMENT,GE MEDICAL SYSTEMS LTD,"94,082.02",Jun-18
Department Of Health,United Lincolnshire Hospitals NHS Trust,2018-06-07,ENGINEERING SERVICES,CAPITAL PROGRAMME,GELDER LTD,"136,663.14",Jun-18
Department Of Health,United Lincolnshire Hospitals NHS Trust,2018-06-21,EQUIPMENT >5K,CAPITAL PROGRAMME,GELDER LTD,"126,867.72",Jun-18
Department Of Health,United Lincolnshire Hospitals NHS Trust,2018-06-21,STRUCTURE,CAPITAL PROGRAMME,GELDER LTD,"112,660.11",Jun-18
Department Of Health,United Lincolnshire Hospitals NHS Trust,2018-06-28,STRUCTURE,CAPITAL PROGRAMME,GEO HOULTON & SONS LTD,"121,421.20",Jun-18
Department Of Health,United Lincolnshire Hospitals NHS Trust,2018-06-28,PHARMACY,DIAGNOSTICS,HEALTHCARE AT HOME,"105,768.00",Jun-18
Department Of Health,United Lincolnshire Hospitals NHS Trust,2018-06-28,PHARMACY,DIAGNOSTICS,HEALTHCARE AT HOME,"35,096.00",Jun-18
Department Of Health,United Lincolnshire Hospitals NHS Trust,2018-06-28,PHARMACY,DIAGNOSTICS,HEALTHCARE AT HOME,"43,375.00",Jun-18
Department Of Health,United Lincolnshire Hospitals NHS Trust,2018-06-28,PHARMACY,DIAGNOSTICS,HEALTHCARE AT HOME,"25,354.08",Jun-18
Department Of Health,United Lincolnshire Hospitals NHS Trust,2018-06-21,PAYE,PAN TRUST,HM REVENUE & CUSTOMS,"2,947,610.03",Jun-18
Department Of Health,United Lincolnshire Hospitals NHS Trust,2018-06-21,PAYE,PAN TRUST,HM REVENUE & CUSTOMS,"3,235,800.32",Jun-18
Department Of Health,United Lincolnshire Hospitals NHS Trust,2018-06-21,PAYE,PAN TRUST,HM REVENUE & CUSTOMS,"98,024.00",Jun-18
Department Of Health,United Lincolnshire Hospitals NHS Trust,2018-06-28,FUEL - STEAM,SITE ESTATES & FACIL BOSTON,INDUSTRIAL ENERGY SERVICES LTD,"28,033.59",Jun-18
Department Of Health,United Lincolnshire Hospitals NHS Trust,2018-06-28,FUEL - STEAM,SITE ESTATES & FACIL BOSTON,INDUSTRIAL ENERGY SERVICES LTD,"33,640.31",Jun-18
Department Of Health,United Lincolnshire Hospitals NHS Trust,2018-06-07,DIAGNOSTIC TESTS NON NHS,DIAGNOSTICS,INHEALTH LTD,"45,000.00",Jun-18
Department Of Health,United Lincolnshire Hospitals NHS Trust,2018-06-21,DIAGNOSTIC TESTS NON NHS,DIAGNOSTICS,INHEALTH LTD,"45,476.00",Jun-18
Department Of Health,United Lincolnshire Hospitals NHS Trust,2018-05-31,CONSULTANCY DELIVERY,ORG DEVELOPMENT & TRAINING,INST. FOR ORGANISATIONAL DEVELOPMENT LTD,"78,000.00",Jun-18
Department Of Health,United Lincolnshire Hospitals NHS Trust,2018-06-28,BUILD MAINT EXT CONTRACTS,IMT,INTRINSIC TECHNOLOGY,"181,612.99",Jun-18
Department Of Health,United Lincolnshire Hospitals NHS Trust,2018-06-28,NETWORK HARD/W,IMT,INTRINSIC TECHNOLOGY,"31,073.84",Jun-18
Department Of Health,United Lincolnshire Hospitals NHS Trust,2018-06-21,PHARMACY PILGRIM,DIAGNOSTICS,JANSSEN-CILAG LTD,"34,560.00",Jun-18
Department Of Health,United Lincolnshire Hospitals NHS Trust,2018-06-28,OTHER NURSING,COMMISSIONING & PERFORMANCE,LINCOLNSHIRE COMMUNITY HEALTH SERVICES,"103,993.74",Jun-18
Department Of Health,United Lincolnshire Hospitals NHS Trust,2018-06-28,OTHER NURSING,COMMISSIONING & PERFORMANCE,LINCOLNSHIRE COMMUNITY HEALTH SERVICES,"103,993.74",Jun-18
Department Of Health,United Lincolnshire Hospitals NHS Trust,2018-06-07,EXTERNAL CONTRACTS,FINANCE,LINCOLNSHIRE PARTNERSHIP NHS TRUST,"35,571.67",Jun-18
Department Of Health,United Lincolnshire Hospitals NHS Trust,2018-06-28,POSTAGE,SITE ESTATES & FACIL LINCOLN,NEOPOST (POSTAGE TOP UP ONLY) POSTROOM,"50,000.00",Jun-18
Department Of Health,United Lincolnshire Hospitals NHS Trust,2018-06-07,PROPERTY LEASE,CORPORATE ESTATES & FACIL,NHS LINCOLNSHIRE EAST CCG,"128,182.32",Jun-18
Department Of Health,United Lincolnshire Hospitals NHS Trust,2018-06-18,CNST CONTRIBUTIONS,GOVERNANCE,NHS LITIGATION AUTHORITY,"1,419,543.20",Jun-18
Department Of Health,United Lincolnshire Hospitals NHS Trust,2018-06-18,CNST CONTRIBUTIONS,GOVERNANCE,NHS LITIGATION AUTHORITY,"34,035.30",Jun-18
Department Of Health,United Lincolnshire Hospitals NHS Trust,2018-06-18,CNST CONTRIBUTIONS,W&C SERVICES BOSTON,NHS LITIGATION AUTHORITY,"254,514.20",Jun-18
Department Of Health,United Lincolnshire Hospitals NHS Trust,2018-06-18,CNST CONTRIBUTIONS,W&C SERVICES LINCOLN,NHS LITIGATION AUTHORITY,"415,276.20",Jun-18
Department Of Health,United Lincolnshire Hospitals NHS Trust,2018-06-28,XRAY MAINTENANCE,DIAGNOSTICS,NHS SUPPLY CHAIN (MAINTENANCE),"28,264.55",Jun-18
Department Of Health,United Lincolnshire Hospitals NHS Trust,2018-06-06,RESUS STOCK CONSUMABLES,PAN TRUST,NHS SUPPLY CHAIN (PRODUCT SALES),"204,091.99",Jun-18
Department Of Health,United Lincolnshire Hospitals NHS Trust,2018-06-13,RESUS STOCK CONSUMABLES,PAN TRUST,NHS SUPPLY CHAIN (PRODUCT SALES),"254,701.33",Jun-18
Department Of Health,United Lincolnshire Hospitals NHS Trust,2018-06-20,RESUS STOCK CONSUMABLES,PAN TRUST,NHS SUPPLY CHAIN (PRODUCT SALES),"222,315.65",Jun-18
Department Of Health,United Lincolnshire Hospitals NHS Trust,2018-06-28,PATHOLOGY SERVICES,BLOOD & PATHLINKS,NORTHERN LINCOLNSHIRE & GOOLE HOSPITALS,"863,644.00",Jun-18
Department Of Health,United Lincolnshire Hospitals NHS Trust,2018-06-14,PHARMACY,DIAGNOSTICS,NOVARTIS PHARMACEUTICALS,"26,712.00",Jun-18
Department Of Health,United Lincolnshire Hospitals NHS Trust,2018-06-21,EQUIPMENT >5K,CAPITAL PROGRAMME,ORCA BUILDING PRODUCTS LTD,"114,751.28",Jun-18
Department Of Health,United Lincolnshire Hospitals NHS Trust,2018-06-14,STRUCTURE,CAPITAL PROGRAMME,ORCA BUILDING PRODUCTS LTD,"23,961.88",Jun-18
Department Of Health,United Lincolnshire Hospitals NHS Trust,2018-06-21,OCCUPANCY GUARANTEE,CORPORATE ESTATES & FACIL,PROGRESS HOUSING ASSOCIATION LTD,"37,312.63",Jun-18
Department Of Health,United Lincolnshire Hospitals NHS Trust,2018-06-14,EQUIPMENT >5K,CAPITAL PROGRAMME,RACKLINE LIMITED,"29,400.01",Jun-18
Department Of Health,United Lincolnshire Hospitals NHS Trust,2018-06-28,MEDICAL RECORD STORAGE,FINANCE,RESTORE PLC - (WAS MAGNUM),"33,345.31",Jun-18
Department Of Health,United Lincolnshire Hospitals NHS Trust,2018-06-05,RATES,SITE ESTATES & FACIL GRANTHAM,SOUTH KESTEVEN DISTRICT COUNCIL,"369,750.00",Jun-18
Department Of Health,United Lincolnshire Hospitals NHS Trust,2018-06-28,MINOR CLINICAL EQUIPMENT,DIAGNOSTICS,STRYKER UK LTD,"28,431.98",Jun-18
Department Of Health,United Lincolnshire Hospitals NHS Trust,2018-06-28,SERVICES FROM NON-NHS BODIES,OPERATIONAL MGMT SUPPORT,SYNERGY HEALTH (UK) LTD,"321,663.61",Jun-18
Department Of Health,United Lincolnshire Hospitals NHS Trust,2018-06-14,CPAP MACHINES,BOSTONIAN,THE SNORING DISORDERS CENTRE LTD,"42,717.90",Jun-18
Department Of Health,United Lincolnshire Hospitals NHS Trust,2018-06-21,CPAP MACHINES,BOSTONIAN,THE SNORING DISORDERS CENTRE LTD,"53,308.80",Jun-18
Department Of Health,United Lincolnshire Hospitals NHS Trust,2018-06-28,CPAP MACHINES,BOSTONIAN,THE SNORING DISORDERS CENTRE LTD,"44,304.48",Jun-18
Department Of Health,United Lincolnshire Hospitals NHS Trust,2018-06-28,CPAP MACHINES,BOSTONIAN,THE SNORING DISORDERS CENTRE LTD,"47,746.40",Jun-18
Department Of Health,United Lincolnshire Hospitals NHS Trust,2018-06-14,SERVICES FROM NON-NHS BODIES,BOSTONIAN,THE SNORING DISORDERS CENTRE LTD,"39,000.00",Jun-18
Department Of Health,United Lincolnshire Hospitals NHS Trust,2018-06-21,SERVICES FROM NON-NHS BODIES,BOSTONIAN,THE SNORING DISORDERS CENTRE LTD,"46,858.00",Jun-18
